Workbook

Sheet 260
C3: УТВЕРЖДЕНО
C4: Начальник Управления образования Исполнительного комитета муниципального образования города Казани
C7: ________________________И.А.Ризванов
C8: (подпись)
B10: СМЕТА
B11: доходов и расходов, по средствам, полученным от предпринимательской и иной приносящей доход деятельности на 2025 год
A14: Учреждение | B14: МАДОУ "Детский сад № 260комбинированного вида" Вахитовского района г.Казани
A15: Адрес | B15: 420021, г.Казань, ул.Татарстан, д.49А
A16: Периодичность: годовая
A17: Индивидуальная (общая)
A18: Министерство, ведомство | B18: 821
A19: Раздел, подраздел | B19: 0701
A20: Целевая статья | B20: 0210342000
A21: Вид расходов | B21: 111,112,113,119,244,853,852,247
A22: Доп.КР | B22: 521,523,522
A23: Доп.ФК
A24: Единица измерения: | B24: руб.
A27: Наименование статьи
A28: 1.ДОХОДЫ
A29: Поступления текущего года | D29: =SUM(D30:D36) -> 470,400.00
A30: Доходы, от операционной аренды | B30: 82100000000000000121 | D30: 85,000.00
A31: Доходы от оказания платных услуг | B31: 82100000000000000131 | D31: 300,000.00
A32: Доходы от оказания платных услуг (целевые платные согл пост№705 от 21.09.17) питание сотрудников | B32: 82100000000000006131 | D32: 82,800.00
A33: Доходы от оказания услуг - родплата пришкольные лагеря | B33: 82100000000000004131
A34: Доходы от компенсации затрат (охрана) | B34: 82100000000000000134
A35: Доходы по условным арендным платежам (от компенсации затрат на коммунальные услуги) | B35: 82100000000000000135 | D35: 2,600.00
A36: Иные доходы (гранты, добровольные пожертвования) | B36: 82100000000000000155
A37: Всего доходов
A39: 2. РАСХОДЫ | B39: КОСГУ, ДопЭК | C39: Сумма итого | D39: 521 | E39: 522 | F39: 523
A40: Заработная плата | B40: 211 | C40: =SUM(D40:F40) -> 172,811.06 | D40: =SUM(D41:D42) -> 172,811.06 | E40: =SUM(E41:E42) -> 0.00 | F40: =SUM(F41:F42) -> 0.00
A41: - заработная плата педагогического персонала | B41: П211004 | C41: 148,975.04 | D41: 148,975.04
A42: - заработная плата вспомогательного персонала | B42: П211005 | C42: 23,836.02 | D42: 23,836.02
A43: Прочие выплаты | B43: 212 | C43: 0.00 | D43: =SUM(D44) -> 0.00 | E43: =SUM(E44:E44) -> 0.00 | F43: =SUM(F44) -> 0.00
A44: - суточные работникам (сотрудникам) при служебных командировках (кроме водителей) | B44: П212006 | C44: 0.00
A45: Начисления на выплаты по заработной плате | B45: 213 | C45: 52,188.94 | D45: =SUM(D46:D47) -> 52,188.94 | E45: =SUM(E46:E47) -> 0.00 | F45: =SUM(F46:F47) -> 0.00
A46: - начисления на заработную плату педагогического персонала | B46: П213004 | C46: 44,990.46 | D46: =ROUND(D41*0.302,2) -> 44,990.46
A47: - начисления на заработную плату вспомогательного персонала | B47: П213005 | C47: 7,198.48 | D47: =ROUND(D42*0.302,2) -> 7,198.48
A48: Услуги связи | B48: 221 | C48: 0.00 | D48: =SUM(D49:D53) -> 0.00 | E48: =SUM(E49:E53) -> 0.00 | F48: =SUM(F49:F53) -> 0.00
A49: -услуги телефонной связи | B49: П221001 | C49: 0.00
A50: -плата за предоставление доступа к телефонной связи и Интернет(разовый) | B50: П221002 | C50: 0.00
A51: -услуги сотовой связи связи | B51: П221010 | C51: 0.00
A52: -плата за услуги сети Интернет | B52: П221012 | C52: 0.00
A53: -прочие услуги связи (радио, а/я) | B53: П221099 | C53: 0.00
A54: Транспортные услуги | B54: 222 | C54: 0.00 | D54: =SUM(D55:D56) -> 0.00 | E54: =SUM(E55:E56) -> 0.00 | F54: =SUM(F55:F56) -> 0.00
A55: - услуги сторонних организаций для оплаты расходов по проезду при служеб.командировках сотрудников | B55: П222004 | C55: 0.00
A56: - прочие транспортные услуги | B56: П222099 | C56: 0.00
A57: Коммунальные услуги | B57: 223 | C57: 12,210.00 | D57: =SUM(D58:D63) -> 9,610.00 | E57: =SUM(E58:E63) -> 0.00 | F57: =SUM(F58:F63) -> 2,600.00
A58: - электроснабжение | B58: П223001 | C58: 9,448.00 | D58: 7,848.00 | F58: 1,600.00
A59: - теплоснабжение | B59: П223002 | C59: 1,000.00 | F59: 1,000.00
A60: - газоснабжение | B60: П223003 | C60: 0.00
A61: - водоснабжение | B61: П223004 | C61: 1,762.00 | D61: 1,762.00
A62: - оплата договоров на вывоз твердых коммунальных отходов с региональным оператором | B62: П223017 | C62: 0.00
A63: -прочие расход по коммунальным услугам, не включенные в вышеуказанные ДЭК | B63: П223099 | C63: 0.00
A64: Арендная плата за пользование имуществом | B64: 224 | C64: 0.00 | D64: =SUM(D65:D67) -> 0.00 | E64: =SUM(E65:E67) -> 0.00 | F64: =SUM(F65:F67) -> 0.00
A65: - Аренда помещений | B65: П224001 | C65: 0.00
A66: -аренда транспорта, оборудования | B66: П224002 | C66: 0.00
A67: - прочие расходы по арендной лате за пользование имуществом | B67: П224099 | C67: 0.00
A68: Работы, услуги по содержанию имущества | B68: 225 | C68: 53,000.00 | D68: =SUM(D69:D88) -> 13,000.00 | E68: =SUM(E69:E88) -> 0.00 | F68: =SUM(F69:F88) -> 40,000.00
A69: - обслуживание охранной и пожарной сигнализации | B69: П225001 | C69: 0.00
A70: - содержание в чистоте помещений, зданий, дворов, иного имущества (озеленение, уборка и вывоз снега ,мусора, отходов, утилизация мусора (ТБО), дератизация, дезинфекция, дезинсекция, газация, санитарно-гигиеническое обслуживание, мойка и чистка (химчистка) | B70: П225002 | C70: 0.00
A71: - проведение работ по ремонту и восстановлению эффективности функционирования коммунальных инженерных систем и коммуникаций, осуществляемые сверх регламентированного условиями поставки коммунальных услуг перечня работ (технологических нужд) | B71: П225003 | C71: 0.00
A72: - обеспечение функционирования и поддержки (восстановление) работоспособности объектов нефинансовых активов | B72: П225004 | C72: 0.00
A73: - зарплата внештатных сотрудников | B73: П225005 | C73: 0.00
A74: - текущий ремонт зданий, сооружений | B74: Н225007 | C74: 0.00
A75: - ТО и ремонт аппаратного обеспечения (оргтехника, мед.оборудования, комп.техника и т.д.), включающее контроль тех.состояния | B75: П225010 | C75: 13,000.00 | D75: 3,000.00 | F75: 10,000.00
A76: - тех обслуживание транспортных средств | B76: П225011 | C76: 0.00
A77: - ремонт транспортных средств | B77: П225012 | C77: 0.00
A78: - тех осмотр транспортных средств | B78: П225013 | C78: 0.00
A79: - содержание трансп.средств (мойка и тд) | B79: П225014 | C79: 0.00
A80: - расходы на ТО и ремонт оборудования (торговое, кухонное, офисное, лифты и т.п.) | B80: П225015 | C80: 40,000.00 | D80: 10,000.00 | F80: 30,000.00
A81: - содержание в чистоте имущества, кроме недвижимого | B81: П225016 | C81: 0.00
A82: - ТО приборов учета | B82: П225035 | C82: 0.00
A83: - противопожарные мероприятия (огнезащитная обработка чердачных перекрытий, замеры сопротивления изоляции, зарядка огнетушителей, опрессовка проводов) | B83: П225036 | C83: 0.00
A84: - содержание и ремонт объектов озеленения | B84: П225037 | C84: 0.00
A85: -расходы по валке и обрезке зеленных насаждений в муниципальных учреждениях образования | B85: П225040 | C85: 0.00
A86: -вывоз мусора ТКО для учреждений СКС | B86: П225050 | C86: 0.00
A87: - прочие первоочередные расходы по работам, услугам по содержанию имущества | B87: П225098 | C87: 0.00
A88: - прочие работы, услуги по содержанию имущества | B88: Н225099 | C88: 0.00
A89: Прочие работы, услуги | B89: 226 | C89: 92,800.00 | D89: =SUM(D90:D111) -> 10,000.00 | E89: =SUM(E90:E111) -> 82,800.00 | F89: =SUM(F90:F111) -> 0.00
A90: - подписка | B90: П226001 | C90: 5,000.00 | D90: 5,000.00
A91: - зарплата внештатных сотрудников | B91: П226002 | C91: 0.00
A92: - организация питания | B92: П226003 | C92: 82,800.00 | E92: 82,800.00
A93: -приобретение неисключительных прав на программное обеспечение | B93: П226010 | C93: 0.00
A94: -приобретение и обновление справочно-информационных баз данных (Гарант, Консультант и др) | B94: П226013 | C94: 0.00
A95: - прочие расходы в области информационно-коммуникационных технологий в тч разработка программного обеспечения … | B95: П226015 | C95: 0.00
A96: - расходы в области информационно-коммуникационных технологий в тч разработка программного обеспечения, приобретения искл.прав… | B96: Н226016 | C96: 0.00
A97: -разработка схем территориального планирования, планировка территорий | B97: Н226019 | C97: 0.00
A98: - типографские работы, услуги | B98: Н226022 | C98: 0.00
A99: - размещение объявлений, рекламы в СМИ, расходы на теле-радиопрограммы | B99: Н226023 | C99: 0.00
A100: - возмещение расходов и оплата по проживанию в жилых помещениях (найм жилого помещения) при служебных командировках | B100: П226024 | C100: 0.00
A101: - услуги адвокатов, нотариусов, переводчиков, экспертов, инкассаторов | B101: П226025 | C101: 0.00
A102: - проведение инвентаризации, паспортизации основных средств | B102: П226027 | C102: 0.00
A103: -оплата медосмотров | B103: П226031 | C103: 0.00
A104: -услуги по предоставлению во временное пользование мягкого инветаря и спец одежды | B104: П226037 | C104: =SUM(D104:F104) -> 0.00
A105: -возмещение работникам расходов по проезду при служебных командировках | B105: П226042 | C105: 0.00
A106: -компенсация расходов на проживание в жилых помещениях спортсменам и студентам при направлении их на различного рода мероприятия | B106: П226043 | C106: 0.00
A107: -компенсация расходов по проезду спортсменам и студентам при направлении их на различного рода мероприятия | B107: П226044 | C107: 0.00
A108: - услуги охраны образовательных учредений ЧОП | B108: П226050 | C108: 0.00
A109: - за участие в семинарах, совещаниях, конференциях, курсах повышения квалификации, проф. обучение, за образовательные услуги, организация и проведение совещаний, конкурсов, олимпиад, выставок, мероприятий, конференций, соревнований, экскурсий | B109: П226052 | C109: 5,000.00 | D109: 5,000.00
A110: - прочие первоочередные расходы по прочим работам, услуам | B110: П226098 | C110: 0.00
A111: - прочие работы, услуги | B111: Н226099 | C111: 0.00
A112: Страхование | B112: 227 | C112: 0.00 | D112: =SUM(D113:D114) -> 0.00 | E112: =SUM(E113:E114) -> 0.00 | F112: =SUM(F113:F114) -> 0.00
A113: -услуги по страхованию (за искл.ОСАГО, КАСКО) | B113: П227001 | C113: 0.00
A114: -услуги по страхованию транспорных средств (ОСАГО, КАСКО) | B114: П227002 | C114: 0.00
A115: Услуги, работы для целей капитальных вложений | B115: 228 | C115: 0.00 | D115: =SUM(D116:D117) -> 0.00 | E115: =SUM(E116:E117) -> 0.00 | F115: =SUM(F116:F117) -> 0.00
A116: - установка и монтаж локальных вычислительных сетей, систем охранной и пожарной сигнализации, видеонаблюдения, контроля доступа | B116: П228005 | C116: 0.00
A117: - монтажные и пуско-наладочные работы поставляемых технических средств в области информационно-коммуникационных технологий | B117: Н228016 | C117: 0.00
A118: Социальные пособия и компенсация персоналу в денежном виде | B118: 266 | C118: 0.00 | D118: =SUM(D119) -> 0.00 | E118: =SUM(E119) -> 0.00 | F118: =SUM(F119) -> 0.00
A119: - прочие пособия | B119: П266099 | C119: 0.00
A120: Налоги, пошлины и сборы | B120: 291 | C120: 0.00 | D120: =SUM(D121:D123) -> 0.00 | E120: =SUM(E121:E123) -> 0.00 | F120: =SUM(F121:F123) -> 0.00
A121: - прочие налоги, в т.ч.госпошлины (за исключением налогов по школьным автобусам) | B121: П291005 | C121: 0.00
A122: -транспортный налог | B122: П291015 | C122: 0.00
A123: -налог по УСН | B123: П291025 | C123: 0.00
A124: Штрафы за нарушение законодательства о налогах и сборах, законодательства о страховых взносах | B124: 292 | C124: 10,000.00 | D124: =SUM(D125) -> 10,000.00 | E124: =SUM(E125) -> 0.00 | F124: =SUM(F125) -> 0.00
A125: - штрафы, пени и другие экономические санкции | B125: П292003 | C125: 10,000.00 | D125: 10,000.00
A126: Другие экономические санкции | B126: 295 | C126: 0.00 | D126: =SUM(D127) -> 0.00 | E126: =SUM(E127:E127) -> 0.00 | F126: =SUM(F127) -> 0.00
A127: - штрафы, пени и другие экономические санкции | B127: П295003 | C127: 0.00
A128: Увеличение стоимости основных средств | B128: 310 | C128: 45,000.00 | D128: =SUM(D129:D133) -> 0.00 | E128: =SUM(E129:E133) -> 0.00 | F128: =SUM(F129:F133) -> 45,000.00
A129: - приобретение огнетушителей | B129: П310001 | C129: 0.00
A130: -приобретение автоматизированных рабочих мест, серверного и тп оборудования | B130: Н310004 | C130: 22,000.00 | F130: 22,000.00
A131: - приобретение учебников для общеобразовательных учредений | B131: П310010 | C131: 0.00
A132: -прочие первоочередные расходы по увеличению стоимости основных средств | B132: П310098 | C132: 0.00
A133: -прочие расходы по увеличению стоимости основных средств | B133: Н310099 | C133: 23,000.00 | F133: 23,000.00
A134: Увеличение стоимости лекартсвенных препаратов и материалов, применяемых в медицинских целях | B134: 341 | C134: 5,000.00 | D134: =SUM(D135) -> 5,000.00 | E134: =SUM(E135) -> 0.00 | F134: =SUM(F135) -> 0.00
A135: -закупка медикаментов, перевязочных средств (расходных материалов) | B135: П341006 | C135: 5,000.00 | D135: 5,000.00
A136: Увеличение стоимости продуктов питания | B136: 342 | C136: 0.00 | D136: =SUM(D137) -> 0.00 | E136: =SUM(E137) -> 0.00 | F136: =SUM(F137) -> 0.00
A137: --продукты пиания (за исключением молока и молочных продуктов) | B137: П342005 | C137: 0.00 | D137: =SUM(D139:D140) -> 0.00 | F137: =SUM(F139:F140) -> 0.00
A138: Увеличение стоимости ГСМ | B138: 343 | C138: 0.00 | D138: =SUM(D139:D140) -> 0.00 | E138: =SUM(E139:E140) -> 0.00 | F138: =SUM(F139:F140) -> 0.00
A139: - ГСМ | B139: П343001 | C139: 0.00
A140: -моторные масла и спец.смазка | B140: П343015 | C140: 0.00
A141: Увеличение стомости строительных материалов | B141: 344 | C141: 0.00 | D141: =SUM(D142:D143) -> 0.00 | E141: =SUM(E142:E143) -> 0.00 | F141: =SUM(F142:F143) -> 0.00
A142: -прочие первоочередные расходы по увеличению стоимости стройматериалов | B142: П344098 | C142: 0.00
A143: -прочие расходы по увеличению стоимости стройматериалов | B143: Н344099 | C143: 0.00
A144: Увеличение стомости мягкого инвентаря | B144: 345 | C144: 0.00 | D144: =SUM(D145) -> 0.00 | E144: =SUM(E145) -> 0.00 | F144: =SUM(F145) -> 0.00
A145: - закупка мягкого инвентаря, одежды, обмундирования | B145: П345002 | C145: 0.00
A146: Увеличение стоимости прочих оборотных запасов (материалов) | B146: 346 | C146: 27,390.00 | D146: =SUM(D147:D153) -> 27,390.00 | E146: =SUM(E147:E153) -> 0.00 | F146: =SUM(F147:F153) -> 0.00
A147: - закупка запчастей к оборудованию | B147: П346003 | C147: 0.00
A148: - закупка материалов, используемых в процессе обучения | B148: П346004 | C148: 0.00
A149: -закупка запчастей к транспортным средствам | B149: П346013 | C149: 0.00
A150: -приобретение автошин | B150: П346014 | C150: =SUM(D150:F150) -> 0.00
A151: - приобретение канцелярских, хозтоваров, расходных материалов | B151: П346017 | C151: 17,390.00 | D151: 17,390.00
A152: -прочие расходы по увеличению стоимости прочих оборотных запасов | B152: П346098 | C152: 0.00
A153: -прочие расходы по увеличению стоимости прочих оборотных запасов | B153: Н346099 | C153: 10,000.00 | D153: 10,000.00
A154: =[1]дс!A134 -> Увеличение стомости мягкого инвентаря | B154: =[1]дс!B134 -> 347 | C154: 0.00 | D154: =SUM(D155) -> 0.00 | E154: =SUM(E155) -> 0.00 | F154: =SUM(F155) -> 0.00
A155: =[1]дс!A135 -> -прочие расходы по увел.стоимости мат.запасов для целей КВ | B155: =[1]дс!B135 -> Н347099 | C155: 0.00
A156: Увеличение стоимости прочих материальных запасов однократного применения | B156: 349 | C156: =SUM(D156:F156) -> 0.00 | D156: =SUM(D157:D158) -> 0.00 | E156: =SUM(E157:E158) -> 0.00 | F156: =SUM(F157:F158) -> 0.00
A157: - расходы по увеличению стоимости прочих материальных запасов однократного применения | B157: П349098 | C157: =SUM(D157:F157) -> 0.00
A158: - прочие расходы по увеличению стоимости прочих материальных запасов, применяемых в медицинских целях, однократного применения | B158: Н349099 | C158: =SUM(D158:F158) -> 0.00
A159: Всего расходов | C159: =SUM(D159:F159) -> 470,400.00 | D159: =D156+D146+D144+D141+D138+D136+D134+D128+D126+D124+D120+D118+D115+D112+D89+D68+D64+D57+D54+D48+D45+D43+D40+D154 -> 300,000.00 | E159: =E156+E146+E144+E141+E138+E136+E134+E128+E126+E124+E120+E118+E115+E112+E89+E68+E64+E57+E54+E48+E45+E43+E40+E154 -> 82,800.00 | F159: =F156+F146+F144+F141+F138+F136+F134+F128+F126+F124+F120+F118+F115+F112+F89+F68+F64+F57+F54+F48+F45+F43+F40+F154 -> 87,600.00
A162: Руководитель | C162: Н.Р.Гумерова
